[Event "Mongolian Championship Women 2022"]
[Site "Chingis Khentii"]
[Date "2022.05.15"]
[Round "4.1"]
[White "Amin-Erdene, Bayanmunkh"]
[Black "Munkhzul, Turmunkh"]
[Result "0-1"]
[ECO "E05"]
[WhiteElo "1425"]
[BlackElo "2294"]
[Annotator "TA"]
[PlyCount "114"]
[EventDate "2022.05.12"]
[EventType "tourn"]
[EventCountry "MGL"]
[SourceTitle "playchess.com"]
[Source "ChessBase"]
[SourceQuality "1"]
[TimeControl "40/5400+30:1800+30"]

{[%evp 23,114,19,23,25,20,13,13,14,14,14,14,16,14,12,18,6,15,8,11,0,4,-20,-13,-15,-25,-27,-12,-22,0,-58,-8,-10,-10,-28,-3,-96,-93,-185,-33,-221,-36,-12,-14,-44,-24,-151,-111,-114,-93,-160,-107,-198,-65,-67,-71,-77,-57,-102,-92,-187,-178,-427,-419,-416,-415,-675,-658,-860,-820,-1207,-1197,-1862,-1728,-1761,-1760,-1033,-682,-2423,-1049,-984,-979,-897,-858,-1711,-1627,-1427,-1402,-1343,-1303,-1312,-1303,-1254,-1232]} 1. d4 {[%emt 0:00:03]} d5 {[%emt 0:00:24]} 2. c4 {[%emt 0:00:09]} e6 {[%emt 0:00:17]} 3. Nf3 {[%emt 0:00:08]} Nf6 {[%emt 0:00:17]} 4. g3 {[%emt 0:00:09]} Be7 {[%emt 0:00:25]} 5. Bg2 {[%emt 0:00:15]} O-O {[%emt 0:00:19]} 6. O-O {[%emt 0:00:06]} dxc4 {[%emt 0:00:29]} 7. Qc2 {[%emt 0:00:16]} a6 {[%emt 0:00:37]} 8. a4 {[%emt 0:00:10]} Bd7 {[%emt 0:00:30][%cal Bc8d7,Bd7c6,Bc6d5,Bd5e4][%mdl 32]} 9. Qxc4 {[%emt 0:00:13]} Bc6 {[%emt 0:00:52]} 10. Bg5 {[%emt 0:00:26]} Bd5 {[%emt 0:01:04]} 11. Qc2 {[%emt 0:00:20]} Be4 {[%emt 0:00:51]} 12. Qc1 {[%emt 0:00:40]} h6 {[%emt 0:00:54]} 13. Bxf6 {[%emt 0:00:53] E05: Open Catalan: 5 Nf3 Be7.} Bxf6 {[%emt 0:00:06]} 14. e3 {[%emt 0:04:03]} a5 {[%emt 0:01:28]} 15. Nbd2 {[%emt 0:06:34] The position is equal.} Bxf3 {[%emt 0:01:49]} 16. Bxf3 {[%emt 0:00:59]} c6 {[%emt 0:00:24]} 17. Nc4 {[%emt 0:04:26]} Na6 {[%emt 0:02:59]} 18. Rd1 {[%emt 0:02:29]} Nb4 {[%emt 0:04:06] [#]} 19. Kg2 $146 {[%emt 0:02:23]} ({Predecessor:} 19. Qd2 Qc7 20. Qe2 Rad8 {½-½ (20) Eljanov,P (2663)-Kryvoruchko,Y (2675) Lutsk 2019}) 19... Qc7 {[%emt 0:07:15]} 20. h4 {[%emt 0:07:32]} Rfd8 {[%emt 0:03:50]} 21. Na3 {[%emt 0:05:27]} Qe7 {[%emt 0:04:29]} 22. Qc4 {[%emt 0:09:20]} e5 {[%emt 0:15:59]} 23. Rac1 {[%emt 0:11:03]} exd4 {[%emt 0:05:40]} 24. exd4 {[%emt 0:00:34]} Nd5 {[%emt 0:03:08]} 25. Nc2 {[%emt 0:08:48]} Rd6 {[%emt 0:10:52][%cal Of6h4]} 26. Qc5 {[%emt 0:17:06] [#]} (26. Re1 $11 Qd7 27. Re4) 26... Qd7 {[%emt 0:06:14]} (26... Bxh4 $1 $15 27. Bxd5 (27. gxh4 $2 Rg6+ 28. Kf1 Qxh4 $19) 27... Rxd5 28. Qxe7 Bxe7) 27. Ne3 $11 {[%emt 0:03:08]} Nxe3+ {[%emt 0:08:36]} 28. fxe3 {[%emt 0:00:02]} Re8 {[%emt 0:00:18]} 29. Kf2 {[%emt 0:02:53]} (29. d5 $11 {keeps the balance.}) 29... Be7 $17 {[%emt 0:02:07]} 30. Qxa5 {[%emt 0:02:16]} (30. e4 $17 {was necessary.}) 30... Rf6 $2 {[%emt 0:00:46]} (30... Rg6 $1 $19 {And now ...Qh3 would win.} 31. h5 Rg5) 31. Kg2 $2 {[%emt 0:01:05] Prevents Qh3+.} (31. e4 $1 $15) 31... Bd8 $2 {[%emt 0:01:36]} ({Not} 31... Bd6 32. e4 $16) (31... Rg6 $1 $19 {Threatens to win with ...Bxh4.} 32. Bh5 Bd8) 32. Qc3 $15 {[%emt 0:00:57]} Rg6 {[%emt 0:00:08][%mdl 1024] Black has compensation.} ({Don't do} 32... Qf5 33. e4 Rxe4 34. Qd3 $14 (34. Bxe4 Qxe4+ 35. Kg1 Rf3 $17)) 33. h5 {[%emt 0:02:21]} Rg5 {[%emt 0:00:49]} 34. Kf2 {[%emt 0:04:37]} (34. e4 $1 $11) 34... Qd6 {[%emt 0:04:19]} 35. Rg1 {[%emt 0:00:38]} Ba5 $36 {[%emt 0:00:10][%mdl 2048] Black is on the roll.} 36. Qc2 {[%emt 0:01:20]} (36. Qd3 $142) 36... Qf6 $17 {[%emt 0:00:55] Black is more active.} 37. g4 {[%emt 0:00:59] [#] Against Rf5} Qe7 {[%emt 0:01:21]} ({Black should play} 37... c5 $1 $19 {[%cal Rc5d4]} 38. Rcd1 Bb6) 38. Qd3 $15 {[%emt 0:01:30]} Qb4 {[%emt 0:00:11]} 39. Rc4 {[%emt 0:01:23]} Qxb2+ {[%emt 0:00:54]} 40. Qc2 {[%emt 0:00:00] Black keeps a firm grip on the game.} Qa3 {[%emt 0:00:00]} 41. Qc1 {[%emt 0:10:48] [#]} (41. e4 $17) 41... Qd6 $1 $19 {[%emt 0:04:49] White must now prevent ...f5.} 42. Rc5 {[%emt 0:03:19] [#]} (42. Rg2 {keeps fighting.}) 42... Bd2 $1 {[%emt 0:02:29][%mdl 512]} 43. Qxd2 {[%emt 0:01:58] aiming for Rxg5.} Rxc5 {[%emt 0:00:07][%cal Bg5c5,Bc5c4,Bc4b4][%mdl 96] Pin} 44. Qb2 {[%emt 0:02:22]} (44. Kg2 $142) 44... Rc4 {[%emt 0:01:19] ...Qh2+ is the strong threat. Black is clearly winning.} 45. g5 {[%emt 0:06:41]} hxg5 {[%emt 0:01:43] Hoping for ...Qh2+.} 46. Rxg5 {[%emt 0:00:21]} Qe7 {[%emt 0:00:21]} 47. Re5 {[%emt 0:01:25]} Qh4+ {[%emt 0:00:29]} 48. Kg2 {[%emt 0:00:49]} Rxe5 {[%emt 0:00:08]} 49. dxe5 {[%emt 0:00:01][%mdl 4096] Endgame KQR-KQB} Rb4 {[%emt 0:01:22]} 50. Qc3 {[%emt 0:01:53]} Qg5+ {[%emt 0:00:10]} (50... Rb1 $142 51. Qd2 Rh1 52. Qd8+ Qxd8 53. Kxh1 Qd3) 51. Kf2 {[%emt 0:00:29]} Rb1 {[%emt 0:01:36]} 52. Bg2 {[%emt 0:00:47]} Qh4+ {[%emt 0:00:27]} 53. Ke2 {[%emt 0:00:20]} Qg3 {[%emt 0:00:14]} 54. Bf3 {[%emt 0:00:20]} Qh2+ {[%emt 0:00:37]} 55. Kd3 {[%emt 0:00:11]} Qa2 {[%emt 0:00:15]} 56. Qd4 {[%emt 0:00:37]} Rb3+ {[%emt 0:00:10]} 57. Ke4 {[%emt 0:00:15]} Qb1+ {[%emt 0:00:05] Weighted Error Value: White=0.83/Black=0.31} 0-1

[Event "Mongolian Championship Women 2022"]
[Site "Chingis Khentii"]
[Date "2022.05.15"]
[Round "4.2"]
[White "Munkhzul, Davaakhuu"]
[Black "Bayarmaa, Bayarjargal"]
[Result "1-0"]
[ECO "B90"]
[WhiteElo "1991"]
[BlackElo "2124"]
[Annotator "TA"]
[PlyCount "77"]
[EventDate "2022.05.12"]
[EventType "tourn"]
[EventCountry "MGL"]
[SourceTitle "playchess.com"]
[Source "ChessBase"]
[SourceQuality "1"]
[TimeControl "40/5400+30:1800+30"]

{[%evp 10,77,27,4,16,13,20,3,20,-14,26,-25,3,0,9,-6,103,97,131,89,95,83,72,65,90,76,79,43,411,413,407,143,229,202,671,629,679,675,645,650,606,597,547,373,605,552,966,965,710,185,209,214,242,241,195,182,499,505,494,439,431,432,29959,29961,29961,29962,29959,12452,5514,1836]} 1. e4 {[%emt 0:00:01]} c5 {[%emt 0:00:05]} 2. Nf3 {[%emt 0:00:04]} d6 {[%emt 0:00:05]} 3. d4 {[%emt 0:00:04]} cxd4 {[%emt 0:00:04]} 4. Nxd4 {[%emt 0:00:05]} Nf6 {[%emt 0:00:06]} 5. Nc3 {[%emt 0:00:05]} a6 {[%emt 0:00:04]} 6. Nb3 {[%emt 0:00:06]} e6 {[%emt 0:00:16] B90: Sicilian Najdorf: Unusual White 6th moves, 6 Be3 Ng4 and 6 Be3 e5.} 7. g4 {[%emt 0:00:08][%cal Bg2g4,Bg4g5][%mdl 32]} b5 {[%emt 0:00:07][%cal Bb7b5,Bb5b4][%mdl 32]} 8. Bg2 {[%emt 0:00:07][%cal Oe4e5] e5! is the strong threat.} Bb7 {[%emt 0:00:21] The position is equal.} 9. g5 {[%emt 0:00:11]} Nfd7 {[%emt 0:00:13]} (9... b4 $5 {[%cal Rb4c3]}) 10. f4 {[%emt 0:00:18]} (10. O-O $142) 10... b4 {[%emt 0:01:03]} (10... h6 {feels hotter.} 11. g6 Qh4+ 12. Kf1 Nc6) 11. Ne2 {[%emt 0:01:07]} a5 {[%emt 0:02:30]} 12. Be3 {[%emt 0:00:40] [#]} h6 $146 {[%emt 0:03:23]} (12... Be7 $11) ({Predecessor:} 12... Na6 13. Ng3 a4 14. Nd4 Ndc5 15. O-O Qd7 16. c3 bxc3 17. bxc3 g6 18. f5 Bg7 {1-0 (30) Deepan Chakkravarthy,J (2473)-Tran,T (2544) Mumbai 2018}) 13. g6 $1 $16 {[%emt 0:10:47]} Na6 {[%emt 0:17:51]} 14. gxf7+ {[%emt 0:04:15]} (14. Ned4 a4 15. Qg4) 14... Kxf7 {[%emt 0:00:08]} 15. O-O {[%emt 0:00:40]} Nf6 {[%emt 0:01:23]} 16. Ng3 {[%emt 0:02:01]} h5 {[%emt 0:03:07]} 17. e5 $1 {[%emt 0:17:12]} Bxg2 {[%emt 0:01:58]} 18. Kxg2 {[%emt 0:00:21]} h4 $2 {[%emt 0:03:09][%mdl 8192] This costs Black the game.} (18... Ng4 $1 $14 19. Bg1 (19. Qf3 Kg8 $14) 19... Kg8) 19. exf6 $18 {[%emt 0:03:14]} (19. f5 dxe5 20. fxe6+ Kxe6 21. Rxf6+ gxf6 $11) 19... hxg3 {[%emt 0:00:11]} 20. hxg3 $2 {[%emt 0:00:09]} (20. f5 $18 gxf6 21. fxe6+ Kg8 22. Qg4+ Bg7 23. hxg3) 20... gxf6 {[%emt 0:10:18] [#]} (20... Qxf6 $16 {was necessary.} 21. f5 Kg8) 21. f5 $1 {[%emt 0:01:15] Active counter play!} (21. Rh1 $6 Rxh1 22. Qxh1 (22. Kxh1 Qd7 $14) 22... Kg8 $16) 21... e5 {[%emt 0:10:02]} (21... Qd7 22. Qf3 (22. Nxa5 Nc7 $11) 22... Nc7) 22. Qd5+ {[%emt 0:03:05]} (22. Qg4 Qc7 $14) 22... Ke8 {[%emt 0:00:24]} 23. Rh1 {[%emt 0:13:46]} Rxh1 {[%emt 0:00:31]} 24. Qc6+ {[%emt 0:03:08]} ({Worse is} 24. Kxh1 Nc7 25. Qf3 Ra6 $11) 24... Kf7 {[%emt 0:07:24]} 25. Rxh1 {[%emt 0:00:13] Qd5+ would kill now.} Bg7 {[%emt 0:06:01]} 26. Bb6 {[%emt 0:08:06]} Qc8 {[%emt 0:16:41]} (26... Qe8 27. Qb7+ (27. Nxa5 Qxc6+ 28. Nxc6 Rc8 $11) (27. Qxd6 Rc8 $18) 27... Kg8 28. Nxa5 Rc8 29. Qxa6 Rxc2+ 30. Kf3 Rxb2 31. Qc4+ Qf7 32. Qc8+ Bf8) 27. Qd5+ {[%emt 0:00:22]} Kf8 {[%emt 0:01:51]} 28. Qxd6+ {[%emt 0:00:35]} ({Weaker is} 28. Rh7 Qxc2+ 29. Nd2 Rc8 30. Qxd6+ Kg8 $14) 28... Ke8 {[%emt 0:00:05]} 29. Nc5 $2 {[%emt 0:03:30]} (29. Rh7 Qb7+ 30. Kg1) 29... Nxc5 {[%emt 0:01:30]} 30. Bxc5 $40 {[%emt 0:00:39][%csl Gc5][%cal Rd6e7][%mdl 128] White attacks with force.} Qb7+ {[%emt 0:00:42]} 31. Kf2 {[%emt 0:00:15]} Ra6 {[%emt 0:00:54]} 32. Qd1 {[%emt 0:03:49] Really sharp!} Qc6 $2 {[%emt 0:04:22]} (32... Ra8) 33. Qh5+ {[%emt 0:02:58]} Kd8 {[%emt 0:00:07] [#]} 34. Rd1+ $1 {[%emt 0:00:16]} Kc8 {[%emt 0:00:07]} 35. Be3 {[%emt 0:00:22] aiming for Qf7.} Qxc2+ {[%emt 0:05:33]} (35... Bf8 $18 36. Qh8 Qe8) 36. Rd2 {[%emt 0:00:06]} Qc6 {[%emt 0:03:20]} 37. Qf7 {[%emt 0:00:35]} Bh8 {[%emt 0:02:24]} 38. Qf8+ {[%emt 0:00:28]} Kb7 {[%emt 0:00:13]} 39. Qe7+ {[%emt 0:00:53] Weighted Error Value: White=0.39/Black=0.81} (39. Qd8 $142 Qc8 40. Qe7+ Qc7 41. Rd7) 1-0

[Event "Mongolian Championship Women 2022"]
[Site "Chingis Khentii"]
[Date "2022.05.15"]
[Round "4.3"]
[White "Mungunzul, Bat-Erdene"]
[Black "Anu, Bayar"]
[Result "1-0"]
[ECO "E92"]
[WhiteElo "2091"]
[BlackElo "2102"]
[Annotator "TA"]
[PlyCount "99"]
[EventDate "2022.05.12"]
[EventType "tourn"]
[EventCountry "MGL"]
[SourceTitle "playchess.com"]
[Source "ChessBase"]
[SourceQuality "1"]
[TimeControl "40/5400+30:1800+30"]

{[%evp 18,99,48,40,74,71,74,64,64,64,66,70,80,23,25,28,22,25,8,22,21,13,41,40,62,10,61,47,64,58,67,0,24,35,35,-20,52,31,31,21,27,24,38,14,31,0,0,0,0,0,0,0,0,0,0,0,0,0,18,43,97,55,367,327,441,432,434,421,530,499,610,624,540,519,798,740,29981,29982,29982,29983,29989,29990,29994,29995]} 1. d4 {[%emt 0:00:02]} Nf6 {[%emt 0:00:02]} 2. c4 {[%emt 0:00:09]} g6 {[%emt 0:00:06]} 3. Nc3 {[%emt 0:00:07]} Bg7 {[%emt 0:00:05]} 4. e4 {[%emt 0:00:08]} d6 {[%emt 0:00:01]} 5. Nf3 {[%emt 0:00:08]} O-O {[%emt 0:00:06]} 6. Be2 {[%emt 0:00:16]} e5 {[%emt 0:00:06]} 7. Be3 {[%emt 0:00:30]} Na6 {[%emt 0:00:35]} 8. d5 {[%emt 0:00:37]} Ng4 {[%emt 0:00:33]} 9. Bg5 {[%emt 0:00:24]} f6 {[%emt 0:00:23]} 10. Bh4 {[%emt 0:01:41]} h5 {[%emt 0:00:13] E92: King's Indian: Classical: 6 Be2 e5: 7 dxe5, 7 Be3 and Petrosian System without 7...Nbd7.} 11. Nd2 {[%emt 0:03:27] 11.h3 is not played anymore.} (11. h3 Nh6 $11) 11... Bd7 {[%emt 0:00:20]} 12. h3 {[%emt 0:08:19]} Nh6 {[%emt 0:00:03] White is slightly better.} 13. f3 {[%emt 0:00:12]} Nf7 {[%emt 0:05:04] [#]} 14. a3 $146 {[%emt 0:11:36]} ({Predecessor:} 14. g4 hxg4 15. fxg4 Bh6 16. Bf2 Kg7 17. h4 Rh8 18. a3 c5 19. Nf1 Bf4 20. Ng3 Nc7 21. h5 Qe7 22. Rg1 Ng5 {½-½ (22) Buli,V (2294)-Wittmann,W (2376) Budapest 2005}) 14... c5 {[%emt 0:02:22]} 15. dxc6 {[%emt 0:01:12]} (15. Bd3) (15. Bd3 $16) 15... bxc6 $11 {[%emt 0:00:28]} 16. b4 {[%emt 0:04:35]} Nc7 {[%emt 0:04:22]} 17. Nb3 {[%emt 0:00:12]} Ne6 {[%emt 0:03:35][%cal Oa7a5]} 18. O-O {[%emt 0:00:25]} Nf4 {[%emt 0:02:04]} 19. Re1 {[%emt 0:00:25]} Be6 {[%emt 0:10:25]} (19... g5 $5 {[%cal Rg5h4]} 20. Bf2 f5 $11) 20. Bf1 {[%emt 0:02:35]} Qc8 {[%emt 0:12:58]} 21. Kh2 {[%emt 0:04:37]} ({White should try} 21. Na5 $14) 21... Rd8 {[%emt 0:05:35]} (21... Kh8 $11) 22. Rc1 $14 {[%emt 0:01:45][%cal Oc3d5]} g5 {[%emt 0:01:52]} 23. Bg3 {[%emt 0:20:49]} Ng6 {[%emt 0:11:22] [#]} 24. Ne2 {[%emt 0:06:13]} (24. Nd5 $1 $14) 24... Bh6 {[%emt 0:01:57]} 25. Rc3 {[%emt 0:00:52]} g4 {[%emt 0:03:43]} 26. h4 {[%emt 0:01:21]} (26. fxg4 $14 hxg4 27. h4) 26... Nf4 {[%emt 0:01:32]} ({Black should play} 26... gxf3 $11 27. gxf3 f5) 27. Qc2 {[%emt 0:03:31]} Kh8 {[%emt 0:03:50]} 28. c5 {[%emt 0:08:15]} d5 {[%emt 0:11:38]} 29. Bxf4 {[%emt 0:00:16]} exf4 {[%emt 0:01:14]} 30. Ned4 {[%emt 0:01:47]} dxe4 {[%emt 0:06:46]} 31. Qxe4 {[%emt 0:01:38]} Ne5 $1 {[%emt 0:00:30]} 32. Ba6 {[%emt 0:06:11]} Qd7 {[%emt 0:03:39]} ({Don't do} 32... g3+ 33. Kh1 Qd7 34. Nxe6 (34. Nxc6 $2 Nxc6 35. Rd3 Bd5 $17) 34... Qxe6 35. Nd4 $18) 33. Nxc6 $1 {[%emt 0:00:27] [#] Hoping for Nbd4.} Bf5 {[%emt 0:02:49]} 34. Nxe5 {[%emt 0:00:31] Dancing on a razor blade.} fxe5 {[%emt 0:00:14]} 35. Qb7 $36 {[%emt 0:05:33][%mdl 2048] And now c6 would win. White fights for an advantage.} ({But not} 35. Qxe5+ $2 Bg7 36. Qxf4 Bxc3 $19) 35... Qe6 {[%emt 0:02:41]} 36. Nd4 $1 {[%emt 0:00:55]} g3+ {[%emt 0:01:19]} 37. Kg1 {[%emt 0:02:53]} Qa2 {[%emt 0:01:02] ( -> ...Qf2+)} 38. Ne2 {[%emt 0:00:24] Active counter play!} Qd2 {[%emt 0:01:32]} (38... e4 $1 $14) 39. Rcc1 {[%emt 0:02:09] aiming for Qe7.} Qe3+ $2 {[%emt 0:00:39][%mdl 8192] Black cannot hold the game after this.} ({Better is} 39... Rf8 $1 $14) 40. Kh1 $18 {[%emt 0:00:00]} Qf2 {[%emt 0:00:00]} 41. Rf1 {[%emt 0:03:42]} Qe3 {[%emt 0:02:49]} 42. c6 {[%emt 0:01:06]} ({Don't play} 42. Qf7 Rf8 43. Qxh5 Rf6 $18) 42... Rg8 {[%emt 0:16:48]} 43. c7 {[%emt 0:03:44] Strongly threatening Qd5.} Qxa3 {[%emt 0:07:07]} 44. Rc3 {[%emt 0:04:42]} Qb2 {[%emt 0:02:04]} 45. Rfc1 {[%emt 0:00:20]} Rac8 {[%emt 0:01:24]} (45... Raf8 $142 46. Rc6 Bg7) 46. Qc6 {[%emt 0:03:28]} Rg6 {[%emt 0:01:17]} 47. Qxg6 {[%emt 0:02:04] White mates.} Bxg6 {[%emt 0:01:32]} 48. Bxc8 {[%emt 0:00:09]} Qxe2 {[%emt 0:02:17]} 49. Be6 {[%emt 0:00:29]} Kh7 {[%emt 0:00:20]} 50. c8=Q {[%emt 0:00:10] Weighted Error Value: White=0.12 (very precise) /Black=0.40} 1-0

[Event "Mongolian Championship Women 2022"]
[Site "Chingis Khentii"]
[Date "2022.05.15"]
[Round "4.4"]
[White "Altantuya, Boldbaatar"]
[Black "Tsetsenbileg, Munkhbayar"]
[Result "1-0"]
[ECO "A11"]
[WhiteElo "2263"]
[BlackElo "1830"]
[Annotator "TA"]
[PlyCount "61"]
[EventDate "2022.05.12"]
[EventType "tourn"]
[EventCountry "MGL"]
[SourceTitle "playchess.com"]
[Source "ChessBase"]
[SourceQuality "1"]
[TimeControl "40/5400+30:1800+30"]

{[%evp 10,61,34,26,34,31,24,28,24,24,37,49,69,54,90,48,96,94,110,53,108,52,117,118,137,115,120,97,91,75,153,150,182,181,302,210,210,198,173,149,246,147,139,137,177,172,170,168,730,728,720,720,713,706]} 1. Nf3 {[%emt 0:00:02]} f5 {[%emt 0:00:38]} 2. b3 {[%emt 0:00:06]} Nf6 {[%emt 0:00:23]} 3. Bb2 {[%emt 0:00:14]} e6 {[%emt 0:00:29]} 4. e3 {[%emt 0:00:10]} d5 {[%emt 0:00:29]} 5. c4 {[%emt 0:00:22]} c6 {[%emt 0:00:35]} 6. Nc3 {[%emt 0:00:18]} Bd6 {[%emt 0:01:24] A11: English Opening: 1...c6.} 7. cxd5 {[%emt 0:00:09]} exd5 {[%emt 0:04:46]} 8. g3 {[%emt 0:00:18]} O-O {[%emt 0:01:15] White has an edge.} 9. Bg2 {[%emt 0:00:29]} b6 {[%emt 0:09:03]} 10. O-O {[%emt 0:00:25]} Ba6 {[%emt 0:03:21] [#]} 11. Ne2 $146 {[%emt 0:00:24]} ({Predecessor:} 11. d3 Nbd7 12. Re1 Ne5 13. Bf1 Qc7 14. Nd4 Bc8 15. Rc1 a6 16. Bg2 Qf7 17. Re2 {1-0 (37) Cardoso,C (1902)-Dos Santos,O Brazil 2011}) 11... Bd3 {[%emt 0:01:27]} 12. Ne1 {[%emt 0:05:34]} Bb5 {[%emt 0:02:06]} (12... Ba6 $14 {might be stronger.}) 13. d3 $16 {[%emt 0:00:26]} Qd7 {[%emt 0:04:09]} 14. Rc1 {[%emt 0:11:34]} (14. Nf4 $16) 14... a5 {[%emt 0:01:46]} ({Black should try} 14... Ba6 $1 $14) 15. Nd4 {[%emt 0:00:31]} (15. Nf4 $16) 15... Be5 {[%emt 0:03:41]} (15... Ba6 $14) 16. Nef3 {[%emt 0:04:41]} Bxd4 {[%emt 0:00:08]} 17. Nxd4 {[%emt 0:00:31]} ({Much less strong is} 17. exd4 a4 $14) 17... Ba6 {[%emt 0:00:17]} 18. Nf3 {[%emt 0:04:05]} c5 {[%emt 0:04:59]} 19. Ne5 {[%emt 0:02:05]} Qe8 {[%emt 0:01:06] [#]} (19... Qe6 $142) 20. Re1 $1 {[%emt 0:04:15] White is more active.} Nbd7 {[%emt 0:01:37] [#]} 21. d4 $36 {[%emt 0:01:55][%mdl 2048] And now Nxd7 would win. White is in control.} cxd4 {[%emt 0:07:01]} (21... Ne4 $142 22. Nxd7 Qxd7 23. dxc5 bxc5) 22. Nxd7 {[%emt 0:00:35]} (22. Qxd4 Nxe5 23. Qxe5 Qxe5 24. Bxe5 Rae8 $16) 22... Qxd7 {[%emt 0:00:15]} 23. Bxd4 {[%emt 0:00:12]} Rab8 {[%emt 0:02:29]} 24. Be5 {[%emt 0:15:39] A strong pair of Bishops.} Rbe8 {[%emt 0:01:40]} (24... Rbc8 $16 {keeps fighting.} 25. Qd4 Rc6 26. Rxc6 Qxc6 27. Bxf6 Qxf6 28. Qxd5+ (28. Bxd5+ Kh8 $16) 28... Kh8) 25. Bxf6 {[%emt 0:10:03]} ({White should play} 25. Qd4 $18) 25... Rxf6 {[%emt 0:00:20]} 26. Bxd5+ {[%emt 0:00:10]} Kh8 {[%emt 0:00:12] [#] ...Rd6 is the strong threat.} 27. Bc6 $1 {[%emt 0:00:25][%mdl 512]} Qxd1 {[%emt 0:00:10]} 28. Rexd1 {[%emt 0:00:07]} Rc8 {[%emt 0:00:41] [#]} (28... Ref8 29. Bf3 g5) 29. Bb5 $1 $18 {[%emt 0:00:30][%mdl 512] White threatens Rxc8+ and mate. White is clearly winning.} Rxc1 {[%emt 0:00:34]} 30. Rxc1 {[%emt 0:00:06]} Bb7 {[%emt 0:00:07]} 31. Rc7 {[%emt 0:00:05] Weighted Error Value: White=0.18 (very precise) /Black=0.34} 1-0